Cogmind - Beta 11.1 *** ADVENTURER MODE // 2022.07.04 @ 22:11:34 Player: JACKBOI Result: Destroyed by G-47 Trooper with Particle Gun Performance ------------- Evolutions (2) 1000 Regions Visited (8) 1600 Robots Destroyed (41) 205 Value Destroyed (1149) 1149 Prototype IDs (5) 100 Alien Tech Used (0) 0 Bonus (244) 244 TOTAL SCORE: 4298 Bonus ------- Aligned with FarCom 300 Friendly Fire -56 Cogmind --------- Core Integrity 0/550 Matter 63/300 Energy 325/350 System Corruption 0% Temperature Cool (9) Movement Rolling (95) Ox1 Location -8/Storage Parts ------- > --- POWER (2) -------- (None) > --- PROPULSION (2) --- Wheel > --- UTILITY (5) ------ Small Storage Unit High-capacity Battery Improved Signal Interpreter Terrain Scanner > --- WEAPON (2) ------- Katana > --- INVENTORY (8) ---- Improved Aluminum Leg Trap Scanner Sensor Array Hacking Suite Enhanced Autogun Peak State ------------ > --- POWER ------------ Light Ion Engine Improved Ion Engine > --- PROPULSION ------- Advanced Treads Advanced Treads > --- UTILITY ---------- Improved Heat Sink Small Storage Unit High-capacity Battery Structural Scanner Trap Scanner > --- WEAPON ----------- Enhanced Autogun Mining Laser > --- INVENTORY -------- Improved Aluminum Leg Transport Network Coupler Power Shielding System Shield Grenade Launcher Rocket Launcher Improved Grenade Launcher Katana [Rating: 24] Favorites ----------- Power Light Ion Engine Engine Light Ion Engine Power Core Light Nuclear Core Propulsion Compact Wheel Treads Advanced Treads Leg Aluminum Leg Wheel Compact Wheel Hover Unit Improved Hover Unit Utility Small Storage Unit Device Improved Terrain Scanner Storage Small Storage Unit Processor Improved Signal Interpreter Protection Power Shielding Weapon Medium Laser Energy Gun Medium Laser Ballistic Gun Light Assault Rifle Ballistic Cannon Light Cannon Launcher Grenade Launcher Special Weapon Mining Laser Slashing Weapon Katana Build | -11 -10 -10 -9 -9 -9 -8 -8 -8 ------- Run | Scr Mat Min Mat Min Exi Min Mat Sto Slots Evolved 4 | . . . 2 . . . 2 . Power 1 | . . . 1 . . . . . Propulsion . | . . . . . . . . . Utility 3 | . . . 1 . . . 2 . Weapon . | . . . . . . . . . Parts Attached 76 | 7 10 3 10 3 4 10 6 23 Power 10 | 1 1 1 2 . . 1 . 4 Engine 8 | 1 1 1 2 . . 1 . 2 Core 2 | . . . . . . . . 2 Reactor . | . . . . . . . . . Propulsion 15 | 2 4 . 4 . . 1 . 4 Treads 7 | . 2 . 3 . . 1 . 1 Leg 1 | . . . . . . . . 1 Wheel 6 | 2 2 . 1 . . . . 1 Hover 1 | . . . . . . . . 1 Flight . | . . . . . . . . . Utility 23 | 2 3 1 1 1 2 4 3 6 Device 12 | 1 3 1 . 1 . 2 2 2 Storage 3 | 1 . . . . . 1 . 1 Processor 3 | . . . . . 1 . . 2 Hackware . | . . . . . . . . . Protection 5 | . . . 1 . 1 1 1 1 Artifact . | . . . . . . . . . Weapon 28 | 2 2 1 3 2 2 4 3 9 Energy Gun 5 | 1 1 . . . 1 1 . 1 Energy Cannon . | . . . . . . . . . Ballistic Gun 6 | 1 . . . 1 . 1 2 1 Ballistic Cannon 1 | . . 1 . . . . . . Launcher 7 | . 1 . . 1 1 . . 4 Special Weapon 4 | . . . 2 . . . 1 1 Impact Weapon . | . . . . . . . . . Slashing Weapon 5 | . . . 1 . . 2 . 2 Piercing Weapon . | . . . . . . . . . Special Melee Weapon . | . . . . . . . . . Unidentified Prototypes 2 | . . . . . 1 . 1 . Parts Lost 32 | . . 1 4 . 2 5 . 20 Power 8 | . . . 1 . 1 . . 6 Propulsion 7 | . . . 1 . . 1 . 5 Utility 8 | . . 1 . . . 3 . 4 Weapon 9 | . . . 2 . 1 1 . 5 Highest Loss Streak 14 | . . 1 2 . 2 3 . 14 To Critical Strikes 1 | . . . . . . 1 . . Average Slot Usage (%) 95 | . 99 99 77 100 96 92 92 86 Engine 14 | . 14 14 13 22 19 16 18 9 Treads 10 | . . . 7 22 22 21 18 15 Wheel 13 | . 27 28 12 . . . . . Device 12 | . 13 13 11 15 13 4 13 22 Storage 15 | . 14 14 11 11 11 21 18 13 Processor 1 | . . . . . 5 . . 6 Protection 2 | . . . 3 6 2 6 7 . Energy Gun 8 | . 13 14 4 . 1 5 . 2 Ballistic Gun 9 | . 14 2 . 8 11 10 4 6 Ballistic Cannon 1 | . . 11 5 . . . . . Launcher 1 | . . . . 11 9 . . 2 Special Weapon 1 | . . . 1 2 . . 9 4 Slashing Weapon 1 | . . . 6 . . 5 4 2 Naked Turns . | . . . . . . . . . Heaviest Build 27 | 14 14 14 20 23 23 25 27 27 Greatest Support 44 | 32 40 32 44 44 44 44 44 44 Greatest Overweight (x) 8 | . . . . . . 1 . 8 Average Overweight (x) . | . . . . . . . . . Largest Inventory Capacity 8 | 8 8 8 8 8 8 8 8 8 Average Capacity 7 | 7 8 8 8 8 8 8 8 8 Most Carried 8 | 8 8 8 8 8 8 8 8 8 Average Carried 7 | 4 7 7 7 7 7 6 7 7 Final Capacity 8 | 8 8 8 8 8 8 8 8 8 Final Carried 8 | 8 8 8 8 8 8 8 8 5 Class Distribution -------------------- 77% | Mutant 22% | Scavenger-Mutant Dominant Class ---------------- Mutant | -10/Materials Mutant | -10/Mines Mutant | -9/Materials Mutant | -9/Mines Scavenger-Mutant | -9/Exiles Mutant | -8/Mines Mutant | -8/Materials Mutant | -8/Storage Resources | -11 -10 -10 -9 -9 -9 -8 -8 -8 ----------- Run | Scr Mat Min Mat Min Exi Min Mat Sto Matter Collected 1037 | 279 . 149 108 31 . 210 . 260 Remotely . | . . . . . . . . . Salvage Created 1379 | 178 . 105 182 91 60 229 . 534 Parts 88 | 12 . 5 11 7 3 5 . 45 Haulers Intercepted . | . . . . . . . . . Recyclers Shooed . | . . . . . . . . . Parts Field Recycled . | . . . . . . . . . Retrieved Matter . | . . . . . . . . . Parts Self-Destructed . | . . . . . . . . . Prevented . | . . . . . . . . . Kills | -11 -10 -10 -9 -9 -9 -8 -8 -8 ------- Run | Scr Mat Min Mat Min Exi Min Mat Sto Combat Hostiles Destroyed 24 | . . 3 5 3 1 4 . 8 Melee 4 | . . . 1 . . 2 . 1 Guns 7 | . . 3 . . . 1 . 3 Cannons 4 | . . . 4 . . . . . AOE 9 | . . . . 3 1 1 . 4 Classes Destroyed 12 | 3 . 1 3 . 1 1 . 3 Worker 1 | 1 . . . . . . . . Builder 3 | . . . . . . . . 3 Tunneler 3 | 3 . . . . . . . . Recycler 6 | 1 . 1 . . . 1 . 3 Operator 1 | . . . . . . . . 1 Watcher 2 | . . . . . . . . 2 Swarmer 3 | . . 3 . . . . . . Grunt 11 | . . . 2 3 . 3 . 3 Duelist 1 | . . . 1 . . . . . Sentry 6 | . . . 2 . . . . 4 Hunter 3 | . . . . . 1 1 . 1 Zionite 1 | . . . . . . 1 . . Best Kill Streak 5 | 4 . 4 3 3 1 3 . 5 Combat Bots Only 3 | . . 3 3 3 1 3 . 2 Max Kills in Single Turn 3 | 1 . 1 1 2 1 2 . 3 Gunslinging . | . . . . . . . . . Exploded 2 | . . . . 2 1 1 . 1 Melee 1 | . . . 1 . . 1 . 1 Uniques/NPCs Destroyed . | . . . . . . . . . Combat | -11 -10 -10 -9 -9 -9 -8 -8 -8 -------- Run | Scr Mat Min Mat Min Exi Min Mat Sto Damage Taken 3145 | . 24 65 412 40 132 616 . 1856 Core 740 | . . 7 66 . 24 89 . 554 Absorbed by Shields . | . . . . . . . . . Redirected to Shielding 27 | . . . 16 2 . 9 . . Regen/Repaired (Parts) 2 | . 2 . . . . . . . Core Remaining (%) 84 | 100 . 97 . . . 55 . . Volleys Fired 105 | 9 5 5 8 2 5 15 4 52 Largest 2 | 2 1 2 2 2 2 2 1 2 Hottest 100 | 70 30 85 100 53 56 88 100 100 Shots Fired 154 | 18 5 10 14 4 6 21 4 72 Gun 88 | 18 . 5 6 2 5 19 . 33 Cannon 11 | . . 5 6 . . . . . Launcher 27 | . 5 . . 2 1 2 . 17 Special 28 | . . . 2 . . . 4 22 Kinetic 61 | 9 . 5 6 2 5 15 . 19 Thermal 66 | 9 . 5 8 . . 4 4 36 Explosive 24 | . 5 . . 2 1 2 . 14 Electromagnetic 3 | . . . . . . . . 3 Robot Hit Streak 20 | 5 . 5 4 6 7 9 . 20 Robot Miss Streak 3 | 2 . 2 3 . 1 3 . 1 Penetration Max . | . . . . . . . . . Secondary Targets . | . . . . . . . . . Shots Hit Robots 99 | 10 . 5 12 2 4 23 . 43 Core Hits 70 | 7 . 5 6 5 3 12 . 32 Critical Kills . | . . . . . . . . . Critical Parts Destroyed 1 | . . . . . . 1 . . Critical Strikes 6 | 1 . 1 2 . . 1 . 1 Burn 4 | 1 . 1 1 . . . . 1 Destroy 1 | . . . . . . 1 . . Sever 1 | . . . 1 . . . . . Melee Attacks 15 | . . . 4 . . 7 . 4 Impact . | . . . . . . . . . Slashing 15 | . . . 4 . . 7 . 4 Piercing . | . . . . . . . . . Sneak Attacks . | . . . . . . . . . Combat Hostiles . | . . . . . . . . . Follow-up Attacks . | . . . . . . . . . Damage Inflicted 2756 | 120 . 93 305 151 76 652 . 1359 Guns 819 | 120 . 62 37 . 42 177 . 381 Cannons 120 | . . 31 89 . . . . . Explosions 1284 | . . . . 151 34 243 . 856 Melee 460 | . . . 131 . . 232 . 97 Ramming 1 | . . . . . . . . 1 Kinetic 562 | 32 . 31 89 . 42 149 . 219 Thermal 536 | 88 . 62 85 . . 28 . 273 Explosive 1133 | . . . . 151 34 243 . 705 Electromagnetic 64 | . . . . . . . . 64 Impact . | . . . . . . . . . Slashing 460 | . . . 131 . . 232 . 97 Piercing . | . . . . . . . . . Highest Corruption . | . . . . . . . . . Average Corruption . | . . . . . . . . . Corruption Purged . | . . . . . . . . . Corruption Blocked . | . . . . . . . . . Overload Shots . | . . . . . . . . . Overflow Damage 45 | . . . . . . 25 . 20 Projectiles . | . . . . . . . . . Explosions 22 | . . . . . . 2 . 20 Melee 23 | . . . . . . 23 . . Knockbacks 1 | . . 1 . . . . . . Impact . | . . . . . . . . . Kinetic 1 | . . 1 . . . . . . Secondary . | . . . . . . . . . Self-Inflicted Damage 180 | . 8 . . . . 75 . 97 Shots 7 | . 1 . . . . 2 . 4 Rammed 1 | . . . . . . . . 1 Targets Rammed 1 | . . . . . . . . 1 Kicked . | . . . . . . . . . Crushed . | . . . . . . . . . Highest Temperature 120 | 80 . 120 30 . . 63 20 55 Average Temperature 27 | 33 . 62 10 . . 21 10 16 Received Heat Transfer 1320 | . 12 . 189 30 . 225 . 864 Siege Activations . | . . . . . . . . . Robots Corrupted . | . . . . . . . . . Combat Hostiles . | . . . . . . . . . Parts Fried . | . . . . . . . . . Impact Corruptions . | . . . . . . . . . Robots Melted . | . . . . . . . . . Combat Hostiles . | . . . . . . . . . Parts Melted 8 | 1 . 3 1 . . 1 . 2 Heat Transferred 1582 | 333 . 259 285 . . 74 . 631 Parts Sabotaged . | . . . . . . . . . Parts Stolen . | . . . . . . . . . Parts Stripped . | . . . . . . . . . Power Chain Reactions 2 | . . . . . . . . 2 Missiles Intercepted . | . . . . . . . . . Alert | -11 -10 -10 -9 -9 -9 -8 -8 -8 ------- Run | Scr Mat Min Mat Min Exi Min Mat Sto Peak Influence 197 | 25 60 80 131 139 . 70 4 197 Initial 42 | . 13 19 26 42 . . . 1 Average 22 | 7 9 13 78 130 . 23 1 58 Maximum Alert Level . | . . . . . . . . . Low Security (%) 100 | 100 100 100 100 100 . 100 100 100 Level 1 . | . . . . . . . . . Level 2 . | . . . . . . . . . Level 3 . | . . . . . . . . . Level 4 . | . . . . . . . . . Level 5 . | . . . . . . . . . High Security . | . . . . . . . . . Max Security . | . . . . . . . . . Squads Dispatched 3 | . . . . . . . . 3 Investigation 1 | . . . . . . . . 1 Extermination . | . . . . . . . . . Reinforcement 1 | . . . . . . . . 1 Assault . | . . . . . . . . . Garrison 1 | . . . . . . . . 1 Intercept . | . . . . . . . . . Searches Triggered . | . . . . . . . . . Construction Impeded 1 | . . . . . . . . 1 Haulers Reinforced . | . . . . . . . . . Active Scanning Responses . | . . . . . . . . . Cargo Convoy Interrupts . | . . . . . . . . . Stealth | -11 -10 -10 -9 -9 -9 -8 -8 -8 --------- Run | Scr Mat Min Mat Min Exi Min Mat Sto Distress Signals 4 | . . . 1 . . . . 3 Communications Jammed . | . . . . . . . . . Distress Signals . | . . . . . . . . . Times Spotted 35 | . 1 3 7 3 3 3 . 15 Peak Tracking Total 5 | . 2 3 5 3 2 2 . 4 Tactical Retreats . | . . . . . . . . . Traps | -11 -10 -10 -9 -9 -9 -8 -8 -8 ------- Run | Scr Mat Min Mat Min Exi Min Mat Sto Traps Triggered . | . . . . . . . . . Indirectly . | . . . . . . . . . Trap Hack Attempts . | . . . . . . . . . Triggered . | . . . . . . . . . Disarmed . | . . . . . . . . . Reprogrammed . | . . . . . . . . . Reused . | . . . . . . . . . Traps Extracted . | . . . . . . . . . Installed . | . . . . . . . . . Triggered . | . . . . . . . . . Machines | -11 -10 -10 -9 -9 -9 -8 -8 -8 ---------- Run | Scr Mat Min Mat Min Exi Min Mat Sto Machines Disabled 3 | . 1 . . . . . . 2 Max in Single Turn 1 | . 1 . . . . . . 1 Garrison Access 1 | . . . . . . . 1 . Machines Sabotaged . | . . . . . . . . . Garrisons Compromised . | . . . . . . . . . Overloaded Fab Kills . | . . . . . . . . . Hacking | -11 -10 -10 -9 -9 -9 -8 -8 -8 --------- Run | Scr Mat Min Mat Min Exi Min Mat Sto Machines Accessed 10 | . 3 . . . 3 . 2 2 Terminals 4 | . 2 . . . . . . 2 Fabricators . | . . . . . . . . . Repair Stations 1 | . 1 . . . . . . . Recycling Units . | . . . . . . . . . Scanalyzers 1 | . . . . . . . 1 . Garrison Access 1 | . . . . . . . 1 . Total Hacks 42 | . 6 . . . 26 . 5 5 Successful 37 | . 5 . . . 26 . 5 1 Failed 5 | . 1 . . . . . . 4 Catastrophic . | . . . . . . . . . Database Lockouts . | . . . . . . . . . Manual 3 | . . . . . 1 . 2 . Terminals 8 | . 3 . . . . . . 5 Fabricators . | . . . . . . . . . Repair Stations 3 | . 3 . . . . . . . Recycling Units . | . . . . . . . . . Scanalyzers 4 | . . . . . . . 4 . Garrison Access 1 | . . . . . . . 1 . Terminal Hacks 30 | . 3 . . . 26 . . 1 Record 26 | . . . . . 26 . . . Prototype ID Bank 1 | . 1 . . . . . . . Locate Traps 1 | . 1 . . . . . . . Recall Investigation 1 | . 1 . . . . . . . Recall Reinforcements 1 | . . . . . . . . 1 Fabricator Hacks . | . . . . . . . . . Repair Station Hacks 2 | . 2 . . . . . . . Scan Component 1 | . 1 . . . . . . . Repair 1 | . 1 . . . . . . . Recycling Unit Hacks . | . . . . . . . . . Scanalyzer 4 | . . . . . . . 4 . Insert Component 2 | . . . . . . . 2 . Analyze 2 | . . . . . . . 2 . Garrison Access Hacks 1 | . . . . . . . 1 . Seal Access 1 | . . . . . . . 1 . Unauthorized Hacks . | . . . . . . . . . Terminals . | . . . . . . . . . Fabricators . | . . . . . . . . . Repair Stations . | . . . . . . . . . Recycling Units . | . . . . . . . . . Scanalyzers . | . . . . . . . . . Garrison Access . | . . . . . . . . . Data Cores Recovered . | . . . . . . . . . Used . | . . . . . . . . . Hacking Detections 7 | . 3 . . . . . 2 2 Full Trace Events 1 | . . . . . . . . 1 Feedback Events . | . . . . . . . . . Feedback Blocked . | . . . . . . . . . Robot Schematics Acquired . | . . . . . . . . . Robots Built . | . . . . . . . . . Authchips . | . . . . . . . . . Time . | . . . . . . . . . Total Robot Build Rating . | . . . . . . . . . Part Schematics Acquired 1 | . . . . . . . 1 . Parts Built . | . . . . . . . . . Authchips . | . . . . . . . . . Time . | . . . . . . . . . Total Part Build Rating . | . . . . . . . . . Parts Repaired 1 | . 1 . . . . . . . Time 38 | . 38 . . . . . . . Parts Recycled . | . . . . . . . . . Recycled Matter . | . . . . . . . . . Retrieved Matter . | . . . . . . . . . Retrieved Components . | . . . . . . . . . Parts Scanalyzed 2 | . . . . . . . 2 . Part Schematics Acquired 1 | . . . . . . . 1 . Parts Damaged . | . . . . . . . . . Bothacking | -11 -10 -10 -9 -9 -9 -8 -8 -8 ------------ Run | Scr Mat Min Mat Min Exi Min Mat Sto Used RIF Installer . | . . . . . . . . . Robots Hacked . | . . . . . . . . . Non-combat . | . . . . . . . . . Combat . | . . . . . . . . . Robot Hacks Applied . | . . . . . . . . . Relay Couplers Released . | . . . . . . . . . Fabnet Peak Effective % . | . . . . . . . . . Robots Rewired . | . . . . . . . . . Allies Hacked . | . . . . . . . . . Hacks Repelled . | . . . . . . . . . Allies | -11 -10 -10 -9 -9 -9 -8 -8 -8 -------- Run | Scr Mat Min Mat Min Exi Min Mat Sto Total Allies . | . . . . . . . . . Largest Group . | . . . . . . . . . Highest-Rated Group . | . . . . . . . . . Highest-Rated Ally . | . . . . . . . . . Total Orders . | . . . . . . . . . Ally Attacks . | . . . . . . . . . Total Damage . | . . . . . . . . . Kills . | . . . . . . . . . Allies Corrupted . | . . . . . . . . . Allies Melted . | . . . . . . . . . Intel | -11 -10 -10 -9 -9 -9 -8 -8 -8 ------- Run | Scr Mat Min Mat Min Exi Min Mat Sto Robot Analysis Total . | . . . . . . . . . Derelict Logs Recovered 1 | . . 1 . . . . . . Drone Launches . | . . . . . . . . . Drone Recoveries . | . . . . . . . . . Exploration | -11 -10 -10 -9 -9 -9 -8 -8 -8 ------------- Run | Scr Mat Min Mat Min Exi Min Mat Sto Turns Passed 5936 | 119 1866 853 169 44 560 1333 329 663 Spaces Moved 1944 | 77 111 230 91 23 366 704 156 186 Core 14 | 2 . . . . . . . 12 Treads 1441 | . 4 . 23 23 366 704 156 165 Legs 3 | . . . . . . . . 3 Wheels 480 | 75 107 230 68 . . . . . Hover 6 | . . . . . . . . 6 Flight . | . . . . . . . . . Fastest Speed 50 | 50 100 100 95 145 145 145 145 145 Average Speed 135 | 98 102 100 110 145 145 145 145 161 Slowest Speed 450 | 100 160 100 145 145 145 225 145 450 Overloaded Moves . | . . . . . . . . . Propulsion Burnouts . | . . . . . . . . . Robots Hopped . | . . . . . . . . . Cave-ins Triggered 1 | . . . . . . . . 1 Exploration Rate (%) 32 | 4 20 48 13 8 66 86 14 35 Regions Visited 8 Branch Regions 5 Pre-discovered Areas . | . . . . . . . . . Known Exits Taken . | . . . . . . . . . Unknown Exits Taken 8 | 1 1 1 1 1 1 1 1 . Scrap Searched 2 | . . 1 . . . 1 . . Spaces Dug 35 | . 17 . . . . . 4 14 Terrain Destroyed 198 | . 41 . . 11 1 29 4 112 Melee . | . . . . . . . . . Projectile 19 | . . . . . . . 4 15 AOE 179 | . 41 . . 11 1 29 . 97 Terrain Rammed . | . . . . . . . . . Walls Destroyed . | . . . . . . . . . Machines Disabled . | . . . . . . . . . Actions | -11 -10 -10 -9 -9 -9 -8 -8 -8 --------- Run | Scr Mat Min Mat Min Exi Min Mat Sto Total 5010 | 100 1857 848 134 29 388 982 245 427 Wait 2811 | . 1721 599 14 . 12 237 76 152 Move 1936 | 76 110 229 90 22 365 703 155 186 Hop . | . . . . . . . . . Pick Up 35 | 8 3 5 4 1 1 6 2 5 Fast Attach 37 | 7 6 2 6 . 1 2 2 11 Attach 15 | . . . 3 . 1 6 1 4 Detach 2 | . . . . . . 2 . . Swap 24 | . 4 1 1 3 2 2 3 8 Drop 29 | . 8 7 4 1 1 2 2 4 Fire 105 | 9 5 5 8 2 5 15 4 52 Melee 15 | . . . 4 . . 7 . 4 Ram . | . . . . . . . . . Kick . | . . . . . . . . . Crush 1 | . . . . . . . . 1 Escape Stasis . | . . . . . . . . . Rewire . | . . . . . . . . . Trap . | . . . . . . . . . Miscellaneous . | . . . . . . . . . Route ------- -11/Scrapyard -10/Materials -10/Mines -9/Materials -9/Mines -9/Exiles (discovered 2 exits: [*Min x2]) -8/Mines -8/Materials (discovered 2 exits: [*Fac] / *Sto) -8/Storage History --------- Turn | Location | Event 12 | -11/Scrapyard | Discovered new exit (range 15) 120 | -11/Scrapyard | Entered Materials 312 | -10/Materials | Build established: Mutant 1937 | -10/Materials | Repaired Imp. Terrain Scanner 1971 | -10/Materials | Discovered new exit (range 14) 1986 | -10/Materials | Entered Mines 2010 | -10/Mines | YI-UF0 nonchalantly dropped a Grenade Launcher on the ground 2087 | -10/Mines | Received a Rocket Launcher from a helpful Derelict 2776 | -10/Mines | Learned Materials terminal intel 2779 | -10/Mines | Discovered new exit (range 8) 2839 | -10/Mines | Entered Materials 2839 | -9/Materials | Evolved 2 slots: Power x1, Utility x1 2840 | -9/Materials | Loaded intel: 12 terminal locations 2927 | -9/Materials | Discovered new exit (range 8) 3008 | -9/Materials | Entered Mines 3044 | -9/Mines | Deemed a non-threat by the Exiles lab entrance 3044 | -9/Mines | Discovered new exit (range 5) 3052 | -9/Mines | Entered Exiles 3077 | -9/Exiles | Discovered new exit (range 15) 3095 | -9/Exiles | Met 8R-AWN 3116 | -9/Exiles | Met EX-HEX 3238 | -9/Exiles | Met EX-BIN 3243 | -9/Exiles | Build established: Scavenger-Mutant 3258 | -9/Exiles | Aligned with FarCom system 3259 | -9/Exiles | Given EX-Vault access code 3326 | -9/Exiles | Opened EX-Vault 3334 | -9/Exiles | Found Prototype Processor 3334 | -9/Exiles | Identified 0b10 Alert Chip 3387 | -9/Exiles | Exiles lab attacked by MAIN.C 3591 | -9/Exiles | Discovered new exit (range 14) 3612 | -9/Exiles | Left Exiles lab with 0b10 Alert Chip 3612 | -9/Exiles | Entered Mines 3670 | -8/Mines | Lost 3 parts (3u) 3783 | -8/Mines | Build established: Mutant 4596 | -8/Mines | Build established: Scavenger-Mutant 4911 | -8/Mines | Discovered new exit (range 10) 4945 | -8/Mines | Entered Materials 4945 | -8/Materials | Evolved 2 slots: Utility x2 5265 | -8/Materials | Discovered new exit (range 4) 5274 | -8/Materials | Discovered new exit (range 15) 5274 | -8/Materials | Entered Storage 5544 | -8/Storage | Build established: Mutant 5583 | -8/Storage | Crushed by falling debris 5635 | -8/Storage | Lost 4 parts (2p1n1u) 5804 | -8/Storage | Garrison activated, responded to threat 5852 | -8/Storage | Core integrity fell below 50% 5911 | -8/Storage | Core integrity fell below 20% 5937 | -8/Storage | Destroyed by G-47 Trooper with Particle Gun Last Messages --------------- 05915_ Y-45 Defender misfires. 05917_ K-01 Serf collects debris. 05918_ Acquired 26 matter. 05920_ Imp. Hover Unit destroyed. 05920_ Acquired 10 matter. 05920_ K-01 Serf collects debris. 05923_ Lgt. Deuterium Engine destroyed. 05924_ K-01 Serf collects debris. 05925_ Acquired Lgt. Armor Plating. 05926_ Critical hit (Burn: +37). 05926_ R-06 Scavenger collects Imp. Sensor Array. 05927_ The unstable cave ceiling collapses. 05927_ Lgt. Armor Plating destroyed. 05928_ K-01 Serf collects debris. 05929_ The unstable cave ceiling collapses. 05932_ K-01 Serf collects debris. 05933_ Acquired Terrain Scanner. 05934_ R-06 Scavenger collects Corrupted Heat Sink. 05936_ K-01 Serf collects debris. 05936_ Acquired Wheel. Map ----- +----------------------------------------------------+ | | | | | | | | | | | ?????????????????????????????????????????????????? | | ?????????????????????????????????????????????????? | | ????????????????????#####????????????????????????? | | ?????????????????#########??#####????????????????? | | ?????????????????##### ###########???????????????? | | ?????????????????## ###### ####??????????????? | | ?????????????????## ## # ###??????????????? | | ???????????????#### # #### ###?????????????? | | ???????????????#### """ ### ### ####?????????????? | | ???????????????##"" """ # ##?????????????? | | ???????????????##"Y """ # ##?????????????? | | ???????????????##"" # ##?????????????? | | ???????????????#### # ##?????????????? | | ????????##?????#### " """"" ##?????????????? | | ?????#??# ######### """"" ##?????????????? | | ?????#### # ### ### # """"" ##?????????????? | | ?????# "" " ########???????? | | ????## " # # # ##+#############??????? | | ????# """ g ! = + ##??????? | | ????## # Y r g ! #"" ##??????? | | ????# # k[ ! @ #"T ##??????? | | ?????# # # !%### #"" """ ##??????? | | ?????##/ ! # ####### + """ ##??????? | | ??????## #### ###### # """ ##??????? | | ??????####+#######??? ?? # # ?????????? | | ??????#### #######??? """ # # ????????? | | ???????????????????## """ # #######Y##????????? | | ???????????????????## """ # ##########????????? | | ??????????????????? # """ # # ^ ##??????? | | ??????????????????? # """ # + """ ""? ##??????? | | ??????????????????? # # # """ """ ##??????? | | ??????????????????? # """ # # """ """ ##??????? | | ??????????????????? # """ + "" ##??????? | | ??????????????????? # """ "" ##??????? | | ??????????????????? # """ # % ##??????? | | ??????????????????? + """ ! !! ] ##??????? | | ?????????????? # h [ #### #####??????? | | ??????????????##+ # ## # ##########??????? | | ?????????????? *= = ##??????????????? | | ?????????????? %=| ###??????????????? | | ?????????????? [%! = ###??????????????? | | ?????????????? ### ## #"###??????????????? | | ??????????????? #### ## ##??????????????? | | ??????????????? #####T #####??????????????? | | ???????????????###########" "#######?????????????? | +----------------------------------------------------+ Best States ------------- Heat Dissipation 45 Energy Generation 19 Energy Capacity 540 Matter Stores 300 Matter Capacity 300 Sight Range 16 Robot Scan Range 14 Terrain Scan Range 16 Terrain Scan Density 10 Armor Coverage 150 Resistance: KI 20 Resistance: TH 20 Resistance: EX 20 Resistance: EM 20 Resistance: I 20 Resistance: S 20 Resistance: P 20 Power Shielding 33 Evasion (%) 41 Recoil Reduction 2 Offensive Hacking 10 Item Schematics ----------------- Transport Network Coupler | -8/Materials | Scanalyzed Robot Schematics ------------------ None Fabricated ------------ Nothing Alien Tech Used ----------------- None Achievements -------------- None Challenges ------------ None Game ------ Seed BeamZioniteThrower Manual? 0 Play Time 00:39:07 Cumulative 106.7 hours Start 2022.07.04 @ 21:02:21 End 2022.07.04 @ 22:11:34 Sessions 3 Manual Loads 0 Difficulty Adventurer Special Mode None Game No. 29 Rogue 0 Adventurer 29 Explorer 0 Win Type - Total 0 Types 0/0/0/0/0/0/0/0/0 Lore% 39 Gallery% 54 Achievement% 34 Wizard Run 0 Options --------- ASCII 0 Keyboard 0 Movement Mouse Keybinds 0 Fullscreen 2 Font 24/Crisp Map View 76x50 Tactical HUD 1 Map Filters NONE Filters NONE Steam 1 RUN: 8724474a-a556-4cb1-83b3-bc95e09fc661